Cogmind - Beta 16 @@@ ROGUE MODE // 2025.10.28 @ 17:11:43 Player: welikiq Result: Self-destructed Performance ------------- Evolutions (1) 500 Regions Visited (3) 600 Robots Destroyed (14) 70 Value Destroyed (196) 196 Prototype IDs (0) 0 Alien Tech Used (0) 0 Bonus (58) 58 TOTAL SCORE: 1424 Bonus ------- Follower Combat Kills 58 Cogmind --------- Core Integrity 313/400 Matter 223/300 Energy 265/265 System Corruption 1% Temperature Cool (0) Movement Walking (90) Location -9/Storage Parts ------- > --- POWER (1) -------- Improved Ion Engine > --- PROPULSION (3) --- VSS Leg VSS Leg VSS Leg > --- UTILITY (3) ------ Small Storage Unit > --- WEAPON (2) ------- Spread Laser EM Pulse Cannon > --- INVENTORY (8) ---- Light Ion Engine Carbon-fiber Leg Carbon-fiber Leg Carbon-fiber Leg Carbon-fiber Leg Light EM Pulse Cannon Peak State ------------ > --- POWER ------------ Light Ion Engine > --- PROPULSION ------- Carbon-fiber Leg Carbon-fiber Leg Carbon-fiber Leg > --- UTILITY ---------- Small Storage Unit Seismic Detector > --- WEAPON ----------- Spread Laser EM Pulse Cannon > --- INVENTORY -------- Carbon-fiber Leg VSS Leg VSS Leg VSS Leg VSS Leg Light EM Pulse Cannon Assault Rifle Heavy Assault Rifle [Rating: 19] Favorites ----------- Power Light Ion Engine Engine Light Ion Engine Propulsion VSS Leg Leg VSS Leg Utility Small Storage Unit Device Seismic Detector Storage Small Storage Unit Weapon Spread Laser Energy Gun Spread Laser Energy Cannon EM Pulse Cannon Ballistic Gun Assault Rifle Build | -11 -10 -9 -9 ------- Run | Yrd Mat Mat Sto Slots Evolved 2 | . . 2 . Power . | . . . . Propulsion 1 | . . 1 . Utility 1 | . . 1 . Weapon . | . . . . Parts Attached 22 | 7 1 13 1 Power 3 | 1 . 2 . Engine 3 | 1 . 2 . Core . | . . . . Reactor . | . . . . Propulsion 10 | 2 . 7 1 Treads . | . . . . Leg 10 | 2 . 7 1 Wheel . | . . . . Hover . | . . . . Flight . | . . . . Utility 2 | 2 . . . Device 1 | 1 . . . Storage 1 | 1 . . . Processor . | . . . . Hackware . | . . . . Protection . | . . . . Artifact . | . . . . Weapon 7 | 2 1 4 . Energy Gun 2 | 1 . 1 . Energy Cannon 2 | . . 2 . Ballistic Gun 3 | 1 1 1 . Ballistic Cannon . | . . . . Launcher . | . . . . Special Weapon . | . . . . Impact Weapon . | . . . . Slashing Weapon . | . . . . Piercing Weapon . | . . . . Special Melee Weapon . | . . . . Unidentified Prototypes . | . . . . Parts Lost 1 | . . 1 . Power . | . . . . Propulsion . | . . . . Utility 1 | . . 1 . Weapon . | . . . . Highest Loss Streak 1 | . . 1 . To Critical Strikes . | . . . . Average Backups 4 | . 1 5 6 Power . | . . . 1 Propulsion 3 | . . 3 4 Utility . | . . . . Weapon 1 | . 1 1 1 Tool/Special . | . . . . Unused Backups 1 | . . 1 . Power . | . . . . Propulsion . | . . . . Utility . | . . . . Weapon 1 | . . 1 . Tool/Special . | . . . . Average Slot Usage (%) 84 | . 100 82 77 Engine 11 | . 14 11 11 Leg 30 | . 28 30 33 Device 7 | . 14 8 . Storage 11 | . 14 11 11 Energy Gun 11 | . 14 11 11 Energy Cannon 7 | . . 8 11 Ballistic Gun 3 | . 14 2 . Peak Build Rating 19 | 7 7 19 18 Average Rating 14 | 5 7 15 17 On Entrance 8 | . 7 7 18 Avg Prop Armor Cover (%) . | . . . . Naked Turns . | . . . . Heaviest Build 21 | 13 13 21 21 Greatest Support 45 | 20 20 45 36 Greatest Overweight (x) . | . . . . Average Overweight (x) . | . . . . Largest Inventory Capacity 8 | 8 8 8 8 Average Capacity 7 | 7 8 8 8 Most Carried 8 | 1 2 8 7 Average Carried 4 | . 1 5 6 Final Capacity 8 | 8 8 8 8 Final Carried 7 | 1 2 7 6 Class Distribution -------------------- 75% | Mutant 24% | Commander-Mutant Dominant Class ---------------- Mutant | -10/Materials Mutant | -9/Materials Commander-Mutant | -9/Storage Resources | -11 -10 -9 -9 ----------- Run | Yrd Mat Mat Sto Matter Collected 415 | 248 68 51 48 Remotely . | . . . . Salvage Created 255 | 11 87 157 . Parts 23 | 4 4 15 . Haulers Intercepted . | . . . . Recyclers Shooed . | . . . . Parts Field Recycled . | . . . . Retrieved Matter . | . . . . Parts Self-Destructed . | . . . . Prevented . | . . . . Parts Restored . | . . . . Kills | -11 -10 -9 -9 ------- Run | Yrd Mat Mat Sto Combat Hostiles Destroyed 13 | . 4 9 . Guns 8 | . 4 4 . Cannons 4 | . . 4 . AOE 1 | . . 1 . Classes Destroyed 4 | 1 2 1 . Tunneler 1 | 1 . . . Swarmer 11 | . 3 8 . Grunt 1 | . 1 . . Sentry 1 | . . 1 . Best Kill Streak 4 | 1 3 4 . Combat Bots Only 4 | . 3 4 . Max Kills in Single Turn 1 | 1 1 1 . Gunslinging . | . . . . Exploded 1 | . . 1 . Melee . | . . . . Uniques/NPCs Destroyed . | . . . . Combat | -11 -10 -9 -9 -------- Run | Yrd Mat Mat Sto Hostile Shots Fired 81 | . 18 60 3 Missed 18 | . 4 13 1 Hits 63 | . 14 47 2 Projectile 63 | . 14 47 2 Critical Strikes 3 | . . 3 . Damage Taken 652 | . 129 479 44 Core 98 | . 11 74 13 Absorbed by Shields . | . . . . Core Remaining (%) 97 | 100 95 . . Volleys Fired 53 | 1 11 14 27 Largest 2 | 2 2 2 2 Hottest 128 | 70 70 128 128 Shots Fired 98 | 2 22 28 46 Gun 65 | 2 22 14 27 Cannon 33 | . . 14 19 Launcher . | . . . . Special . | . . . . Kinetic 12 | 1 11 . . Thermal 53 | 1 11 14 27 Explosive . | . . . . Electromagnetic 33 | . . 14 19 Robot Hit Streak 7 | 1 7 5 . Robot Miss Streak 6 | . 5 6 . Penetration Max . | . . . . Secondary Targets . | . . . . Shots Hit Robots 36 | 1 14 21 . Core Hits 26 | 1 5 19 1 Critical Kills . | . . . . Critical Parts Destroyed . | . . . . Critical Strikes 1 | . 1 . . Burn 1 | . 1 . . Melee Attacks . | . . . . Impact . | . . . . Slashing . | . . . . Piercing . | . . . . Sneak Attacks . | . . . . Combat Hostiles . | . . . . Follow-up Attacks . | . . . . Damage Inflicted 593 | 13 175 392 13 Guns 352 | 13 175 164 . Cannons 199 | . . 199 . Explosions 27 | . . 27 . Melee . | . . . . Ramming 15 | . . 2 13 Kinetic 89 | . 89 . . Thermal 290 | 13 86 191 . Explosive . | . . . . Electromagnetic 199 | . . 199 . Impact . | . . . . Slashing . | . . . . Piercing . | . . . . Highest Corruption 1 | . . . 1 Average Corruption 1 | . . . 1 Corruption Purged . | . . . . Corruption Blocked . | . . . . Overload Shots . | . . . . Overflow Damage . | . . . . Projectiles . | . . . . Explosions . | . . . . Melee . | . . . . Knockbacks . | . . . . Impact . | . . . . Kinetic . | . . . . Secondary . | . . . . Self-Inflicted Damage 21 | . . 21 . Shots 1 | . . 1 . Rammed . | . . . . Targets Rammed 3 | . . 1 2 Kicked 3 | . . 1 2 Crushed . | . . . . Highest Temperature 440 | 9 66 137 440 Average Temperature 148 | 6 34 61 241 Received Heat Transfer 153 | . 30 117 6 Effects 5 | . . . 5 Shutdowns 2 | . . . 2 Energy Bleed 1 | . . . 1 Interference 1 | . . . 1 Short Circuit 1 | . . . 1 Siege Activations . | . . . . Martial Activations . | . . . . Shielding Activations . | . . . . Robots Disrupted . | . . . . Combat Hostiles . | . . . . Robots Corrupted . | . . . . Combat Hostiles . | . . . . Parts Fried . | . . . . Impact Corruptions . | . . . . Robots Melted . | . . . . Combat Hostiles . | . . . . Parts Melted 1 | . 1 . . Heat Transferred 570 | 37 333 200 . Parts Sabotaged . | . . . . Parts Stolen . | . . . . Parts Stripped . | . . . . Power Chain Reactions 1 | . . 1 . Alert | -11 -10 -9 -9 ------- Run | Yrd Mat Mat Sto Maximum Alert Level . | . . . . Low Security (%) 100 | 100 100 100 100 Level 1 . | . . . . Level 2 . | . . . . Level 3 . | . . . . Level 4 . | . . . . Level 5 . | . . . . High Security . | . . . . Max Security . | . . . . Peak Influence 105 | 5 70 105 67 Initial 30 | . . 16 30 Average 25 | . 24 32 19 Influence Increases 422 | 5 100 217 100 Destroy 0b10 Robot/C 300 | . 80 180 40 Destroy 0b10 Robot/NC 10 | 5 . . 5 Destroy Leader 60 | . 20 30 10 Allied During Kill 25 | . . . 25 Successful Hack 9 | . . 4 5 Destroy Structure 3 | . . 3 . Lose Combat Pursuer 15 | . . . 15 Influence Decreases 399 | 5 60 184 150 Entered New Map 67 | . . 24 43 Time Decay 302 | 5 60 150 87 Lost Part 10 | . . 10 . Lost Ally 20 | . . . 20 Squads Dispatched 3 | . 1 . 2 Investigation . | . . . . Extermination . | . . . . Reinforcement 1 | . 1 . . Assault . | . . . . Garrison 2 | . . . 2 Intercept . | . . . . Searches Triggered . | . . . . Construction Impeded . | . . . . Haulers Reinforced . | . . . . Active Scanning Responses . | . . . . Cargo Convoy Interrupts . | . . . . Stealth | -11 -10 -9 -9 --------- Run | Yrd Mat Mat Sto Distress Signals . | . . . . Communications Jammed . | . . . . Distress Signals . | . . . . Times Spotted 32 | . 6 12 14 Peak Tracking Total 6 | . 5 6 5 Tactical Retreats 1 | . . . 1 Traps | -11 -10 -9 -9 ------- Run | Yrd Mat Mat Sto Traps Triggered 1 | . . . 1 Indirectly . | . . . . Trap Hack Attempts . | . . . . Triggered . | . . . . Disarmed . | . . . . Reprogrammed . | . . . . Reused . | . . . . Traps Extracted . | . . . . Installed . | . . . . Triggered . | . . . . Machines | -11 -10 -9 -9 ---------- Run | Yrd Mat Mat Sto Machines Disabled . | . . . . Max in Single Turn . | . . . . Machines Repaired . | . . . . Machines Dismantled . | . . . . Machines Sabotaged . | . . . . Overloaded Fab Kills . | . . . . Hacking | -11 -10 -9 -9 --------- Run | Yrd Mat Mat Sto Machines Accessed 3 | . 1 1 1 Terminals 3 | . 1 1 1 Fabricators . | . . . . Repair Stations . | . . . . Recycling Units . | . . . . Scanalyzers . | . . . . Garrison Access . | . . . . Total Hacks 7 | . 2 3 2 Successful 2 | . . 1 1 Failed 5 | . 2 2 1 Catastrophic 1 | . 1 . . Database Lockouts . | . . . . Manual . | . . . . Terminals 7 | . 2 3 2 Fabricators . | . . . . Repair Stations . | . . . . Recycling Units . | . . . . Scanalyzers . | . . . . Garrison Access . | . . . . Terminal Hacks 2 | . . 1 1 Record 1 | . . 1 . Zone Layout 1 | . . . 1 Fabricator Hacks . | . . . . Repair Station Hacks . | . . . . Recycling Unit Hacks . | . . . . Scanalyzer . | . . . . Garrison Access Hacks . | . . . . Unauthorized Hacks . | . . . . Terminals . | . . . . Fabricators . | . . . . Repair Stations . | . . . . Recycling Units . | . . . . Scanalyzers . | . . . . Garrison Access . | . . . . Data Cores Recovered 1 | . . . 1 Used . | . . . . Hacking Detections 3 | . 1 1 1 Full Trace Events . | . . . . Feedback Events . | . . . . Feedback Blocked . | . . . . Robot Schematics Acquired . | . . . . Robots Built . | . . . . Authchips . | . . . . Time . | . . . . Total Robot Build Rating . | . . . . Part Schematics Acquired . | . . . . Parts Built . | . . . . Authchips . | . . . . Time . | . . . . Total Part Build Rating . | . . . . Part Studies Acquired . | . . . . Parts Repaired . | . . . . Time . | . . . . Parts Recycled . | . . . . Recycled Matter . | . . . . Retrieved Matter . | . . . . Retrieved Components . | . . . . Parts Scanalyzed . | . . . . Part Schematics Acquired . | . . . . Parts Damaged . | . . . . Bothacking | -11 -10 -9 -9 ------------ Run | Yrd Mat Mat Sto Used RIF Installer . | . . . . Robots Hacked . | . . . . Non-combat . | . . . . Combat . | . . . . Robot Hacks Applied . | . . . . Relay Couplers Released . | . . . . Fabnet Peak Effective % . | . . . . Robots Rewired . | . . . . Allies Hacked . | . . . . Hacks Repelled . | . . . . Allies | -11 -10 -9 -9 -------- Run | Yrd Mat Mat Sto Total Allies 10 | . . . 10 Largest Group 10 | . . . 10 Highest-Rated Group 88 | . . . 88 Highest-Rated Ally 16 | . . . 16 Total Orders . | . . . . Ally Attacks 28 | . . . 28 Total Damage 202 | . . . 202 Kills 3 | . . . 3 Allies Corrupted . | . . . . Allies Melted . | . . . . Intel | -11 -10 -9 -9 ------- Run | Yrd Mat Mat Sto Active Infowar (turns) 705 | 34 226 445 . Seismic 705 | 34 226 445 . Robot Analysis Total . | . . . . Derelict Logs Recovered . | . . . . Drone Launches . | . . . . Drone Recoveries . | . . . . Exploration | -11 -10 -9 -9 ------------- Run | Yrd Mat Mat Sto Turns Passed 1202 | 75 226 589 312 Spaces Moved 647 | 56 142 375 74 Core 10 | 10 . . . Treads . | . . . . Legs 637 | 46 142 375 74 Wheels . | . . . . Hover . | . . . . Flight . | . . . . Fastest Speed 50 | 50 120 90 90 Average Speed 112 | 107 120 115 90 Slowest Speed 120 | 120 120 120 90 Overloaded Moves . | . . . . Propulsion Burnouts . | . . . . Robots Hopped . | . . . . Potential Cave-ins . | . . . . Cave-ins Triggered . | . . . . Exploration Rate (%) 19 | 4 35 25 14 Regions Visited 3 Branch Regions 1 Pre-discovered Areas . | . . . . Known Exits Taken . | . . . . Unknown Exits Taken 3 | 1 1 1 . Scrap Searched . | . . . . Spaces Dug . | . . . . Terrain Destroyed 3 | . . 3 . Melee . | . . . . Projectile . | . . . . AOE 3 | . . 3 . Terrain Rammed . | . . . . Walls Destroyed . | . . . . Machines Disabled . | . . . . Actions | -11 -10 -9 -9 --------- Run | Yrd Mat Mat Sto Total 1011 | 65 175 498 273 Wait 264 | 1 21 76 166 Move 644 | 55 141 374 74 Hop . | . . . . Pick Up 9 | 1 1 7 . Fast Attach 8 | 7 . 1 . Attach 2 | . . 1 1 Detach . | . . . . Swap 17 | . 1 16 . Drop 9 | . . 8 1 Fire 53 | 1 11 14 27 Melee . | . . . . Ram . | . . . . Kick 3 | . . 1 2 Crush . | . . . . Escape Stasis . | . . . . Rewire 2 | . . . 2 Trap . | . . . . Miscellaneous . | . . . . Route ------- -11/Scrapyard -10/Materials (discovered 2 exits: *Mat / [*Min]) -9/Materials -9/Storage History --------- Turn | Location | Event 8 | -11/Scrapyard | Discovered new exit (range 16) 76 | -11/Scrapyard | Entered Materials 157 | -10/Materials | Discovered new exit (range 10) 291 | -10/Materials | Discovered new exit (range 10) 302 | -10/Materials | Entered another Materials area 302 | -9/Materials | Evolved 2 slots: Propulsion x1, Utility x1 314 | -9/Materials | Build established: Mutant 746 | -9/Materials | Discovered new exit (range 15) 891 | -9/Materials | Entered Storage 905 | -9/Storage | Assisted by bots powering up and referring to "LRC-V3" 914 | -9/Storage | Garrison activated, responded to threat 1191 | -9/Storage | Garrison activated, responded to threat 1203 | -9/Storage | Self-destructed Last Messages --------------- 01168_ Mercenary 2h destroyed. 01168_ Mercenary 2i destroyed. 01170_ K-01 Serf collects debris. 01171_ T-07 Excavator is excavating. 01173_ K-01 Serf collects debris. 01175_ U-05 Engineer lays Concrete. 01176_ K-01 Serf collects debris. 01176_ U-05 Engineer builds a Door. 01179_ K-01 Serf collects debris. 01186_ T-07 Excavator is excavating. 01186_ K-01 Serf collects debris. 01191_ G-34 Mercenary calls for garrison reinforcements. 01191_ ALERT: Activating Garrison Access S001. 01192_ U-05 Engineer lays Concrete. 01193_ G-34 Mercenary suffers critical hit (Burn). 01194_ T-07 Excavator is excavating. 01196_ G-34 Mercenary heat damages core (-3). 01198_ Mercenary 2g destroyed. 01201_ Kicked A-02 Transporter out of the way. 01203_ Acquired 32 matter. Map ----- +----------------------------------------------------+ | | | | | | | | | ???????????##########?#????????????????????????? | | ???????????? ?#????????????????????????? | | ????????????# ?########?????????????????? | | ???????????? ?## #?????????????????? | | ????????????? ?## #?????????????????? | | ??????????????? ?## T#?????????????????? | | ????????????????? ?### ##?????????????????? | | ?????????????????## #######+###########????????? | | ?????????????????# ^[%[ #????????? | | ????????????###### ^%*= * #????????? | | ????????# % == #????????? | | ????????# ######+###################????????? | | ?????????????#?# #??????????????????????? | | ?????????????#?# #??????????????????????? | | ?????????????#?# #??????????????????????? | | ?????????????#?# #??????????????????????? | | ?????????????#?# #??????????????????????? | | ?????????????#?# g #??????????????????????? | | ???????????????# kg g#??????????????????????? | | ???????????????# gg#######????????????????? | | ???????????????# g%= #????????????????? | | ???????????????##########@= #????????????????? | | ????????????????????????#!a #????????????????? | | ???????????????????????? #??????????????? | | ???????????????????????? Y +??????????????? | | ??????????????????????? Y #??????????????? | | ???????????????????????##b #??????????????? | | ????????????????????????# """ #??????????????? | | ????????????????????????" """ ""?????????????? | | ???????????????????????? g """ T"?????????????? | | ????????????????????????" ?? ""?????????????? | | ????????????????????????# ??? ##?????????????? | | ????????????????????????? "???????????????????? | | ?????????????????????????m "???????????????????? | | ????????????????????????? k"???????????????????? | | ????????????????????????? ????????????????????? | | ????????????????????????? ????????????????????? | | ???????????????????????????????????????????????? | | ???????????????????????????????????????????????? | | ???????????????????????????????????????????????? | | ???????????????????????????????????????????????? | | ???????????????????????????????????????????????? | | ???????????????????????????????????????????????? | | ???????????????????????????????????????????????? | | ???????????????????????????????????????????????? | | ???????????????????????????????????????????????? | +----------------------------------------------------+ Best States ------------- Heat Dissipation 28 Energy Generation 12 Energy Capacity 265 Matter Stores 300 Matter Capacity 300 Sight Range 16 Terrain Scan Density 10 Evasion (%) 57 Item Schematics ----------------- None Robot Schematics ------------------ None Fabricated ------------ Nothing Repaired ---------- Nothing Studied --------- None Alien Tech Used ----------------- None Achievements -------------- The More The Merrier Challenges ------------ None Game ------ Seed ProjectilePropulsionSheargun Manual? 0 Play Time 00:13:43 Cumulative 11.9 hours Start 2025.10.28 @ 11:55:32 End 2025.10.28 @ 17:11:43 Sessions 3 Manual Loads 0 Difficulty Rogue Special Mode None Game No. 33 Rogue 33 Adventurer 0 Explorer 0 Win Type - Total 0 Types 0/0/0/0/0/0/0/0/0/0 Lore% 3 Gallery% 11 Achievement% 11 Wizard Run 0 Options --------- Layout 0 ASCII 0 Keyboard 1 Movement Numpad Keybinds 0 Fullscreen 1 Font 24/Smallcaps Map View 76x50 Zoom Use 54% Tactical HUD 1 Map Filters NONE Filters NONE Steam 1 RUN: dceb4793-7d11-4b48-a6f8-1f3b105e1f91